bitfinex-derivatives/quotes_SOLF0:USTF0_20250206
["timestamp","ask_amount","ask_price","bid_price","bid_amount"]
[1738836956663,0.03226459,202.36,202.32,4.6618]
[1738836957067,0.03226459,202.36,202.33,4.9402]
[1738836957362,8.45899794,202.36,202.31,0.03788524]
[1738836957573,8.42673335,202.32,202.31,0.03788524]
[1738836958964,13.36723335,202.32,202.31,0.03788524]
[1738836959867,8.42673335,202.32,202.31,0.03788524]
[1738836962965,13.36723335,202.32,202.31,0.03788524]
[1738836963465,4.9411,202.3,202.25,4.9422]
[1738836963774,8.42673335,202.3,202.21,8.42673335]
[1738836964272,8.42673335,202.28,202.19,8.42673335]
[1738836964874,8.46329464,202.26,202.21,0.03399238]
[1738836965177,8.42673335,202.24,202.17,8.42673335]
[1738836965372,0.03656129,202.26,202.21,0.03633581]
[1738836965373,8.42673335,202.22,202.21,0.03633581]
[1738836965872,8.42673335,202.22,202.13,12.95173335]
[1738836966071,8.42673335,202.22,202.19,0.03147181]
[1738836966776,0.03591173,202.23,202.19,0.03147181]
[1738836967174,0.03591173,202.23,202.22,4.9429]
[1738836972782,4.9405,202.32,202.26,4.9417]
[1738836973375,13.20385518,202.33,202.2,1.5417]
[1738836973581,3.2152,202.35,202.21,13.20385518]
[1738836973784,3.2152,202.35,202.22,1.5939]
[1738836973983,0.03283601,202.3,202.26,0.03468597]
[1738836974883,13.23669119,202.3,202.26,0.03468597]
[1738836975479,4.9413,202.29,202.26,0.03468597]
[1738836976691,4.9415,202.28,202.26,0.03468597]
[1738836979085,18.17789119,202.3,202.26,0.03468597]
[1738836979490,13.23669119,202.3,202.26,0.03468597]
[1738836979987,0.03283601,202.3,202.26,0.03468597]
[1738836980393,4.97383601,202.3,202.26,4.97658597]
[1738836981088,0.03283601,202.3,202.27,4.9417]
[1738836981288,0.03283601,202.3,202.26,0.03468597]
[1738836982494,0.03283601,202.3,202.27,4.9417]
[1738836982694,0.03283601,202.3,202.26,0.03468597]
[1738836983092,0.03283601,202.3,202.29,4.9412]
[1738836983790,16.31475518,202.42,202.27,13.20385518]
[1738836984092,16.31475518,202.42,202.35,4.9396]
[1738836984292,4.9387,202.4,202.35,4.9396]
[1738836985096,0.03650902,202.4,202.35,4.97094834]
[1738836985792,4.97510902,202.4,202.35,4.97094834]
[1738836986094,4.97510902,202.4,202.36,4.9394]
[1738836986892,4.97510902,202.4,202.35,0.03134834]
[1738836986893,0.03650902,202.4,202.37,4.9391]
[1738836987395,0.03650902,202.4,202.38,4.9388]
[1738836987589,0.03650902,202.4,202.35,0.03134834]
[1738836989297,0.03650902,202.4,202.39,4.9388]
[1738836998202,0.03650902,202.4,202.35,0.03134834]
[1738836999804,0.03650902,202.4,202.39,4.9388]
[1738837000799,13.20385518,202.51,202.42,4.938]
[1738837001001,18.13995518,202.51,202.4,2.9361]
[1738837001603,13.20385518,202.51,202.4,2.9361]
[1738837001806,4.9361,202.5,202.46,4.9369]
[1738837002006,0.0339473,202.48,202.46,4.9369]
[1738837002808,0.0339473,202.48,202.43,0.03530225]
[1738837003507,0.0339473,202.48,202.45,4.9372]
[1738837004105,0.0339473,202.48,202.46,4.9369]
[1738837004606,0.0339473,202.48,202.43,0.03530225]
[1738837004808,0.0339473,202.48,202.44,4.9375]
[1738837005810,4.937,202.47,202.44,4.9375]
[1738837006406,4.9705473,202.48,202.44,4.9375]
[1738837007307,0.0339473,202.48,202.44,4.9375]
[1738837007507,4.9368,202.47,202.44,4.9375]
[1738837007908,4.9368,202.47,202.43,4.97310225]
[1738837009306,4.9705473,202.48,202.44,4.9375]
[1738837009610,0.0339473,202.48,202.43,0.03530225]
[1738837009813,0.0339473,202.48,202.45,4.9371]
[1738837010515,4.9371,202.46,202.43,4.97290225]
[1738837010713,13.20385518,202.45,202.43,0.03530225]
[1738837011309,4.9376,202.44,202.43,0.03530225]
[1738837018610,4.9387,202.4,202.32,1.6098]
[1738837019313,4.9387,202.4,202.36,4.9393]
[1738837019515,0.03382104,202.38,202.34,0.03431354]
[1738837020406,0.03382104,202.38,202.37,4.9393]
[1738837042627,8.43453149,202.46,202.43,4.9378]
[1738837044125,0.03169924,202.47,202.42,0.03694796]
[1738837046130,0.03169924,202.47,202.45,4.9373]
[1738837046329,8.43453149,202.46,202.42,0.03694796]
[1738837047532,8.43453149,202.44,202.42,0.03694796]
[1738837048234,4.9378,202.43,202.42,0.03694796]
[1738837048733,13.18369058,202.43,202.36,4.9395]
[1738837049733,13.18369058,202.43,202.37,0.03342789]
[1738837049734,4.9386,202.4,202.37,0.03342789]
[1738837050631,4.939,202.38,202.37,0.03342789]
[1738837051832,4.9403,202.33,202.28,20.52704856]
[1738837052233,13.18369058,202.31,202.24,34.24505306]
[1738837052833,18.12459058,202.31,202.25,4.9421]
[1738837053039,0.03726513,202.3,202.25,4.97739257]
[1738837053440,4.97826513,202.3,202.25,4.97739257]
[1738837054938,4.97826513,202.3,202.26,4.9419]
[1738837055541,4.97826513,202.3,202.25,4.97749257]
[1738837055937,0.03726513,202.3,202.25,0.03529257]
[1738837056139,0.03726513,202.3,202.26,4.9419]
[1738837058144,4.942,202.26,202.25,0.03529257]
[1738837058738,13.18369058,202.28,202.25,0.03529257]
[1738837058946,18.12519058,202.28,202.25,0.03529257]
[1738837059642,0.03726513,202.3,202.25,0.03529257]
[1738837060745,4.97846513,202.3,202.26,4.942]
[1738837061642,0.03726513,202.3,202.25,0.03529257]
[1738837062247,4.9419,202.27,202.25,0.03529257]
[1738837062748,0.03726513,202.3,202.25,0.03529257]
[1738837062947,4.9414,202.29,202.25,0.03529257]
[1738837063148,0.03726513,202.3,202.25,0.03529257]
[1738837064550,4.9417,202.28,202.25,0.03529257]
[1738837068245,4.9419,202.27,202.25,0.03529257]
[1738837068449,0.03726513,202.3,202.25,0.03529257]
[1738837068652,8.44779867,202.26,202.25,0.03529257]
[1738837073153,13.38979867,202.26,202.25,0.03529257]
[1738837091472,8.44779867,202.26,202.25,0.03529257]
[1738837091673,4.9417,202.27,202.25,0.03529257]
[1738837092173,8.44779867,202.28,202.25,0.03529257]
[1738837092371,4.9419,202.26,202.25,0.03529257]
[1738837093472,13.38929867,202.28,202.25,4.97739257]
[1738837093671,0.03726513,202.3,202.25,0.03529257]
[1738837094370,0.03726513,202.3,202.26,8.44779867]
[1738837094872,0.03726513,202.3,202.27,4.9416]
[1738837095070,0.03726513,202.3,202.26,8.44779867]
[1738837095777,0.03726513,202.3,202.28,4.9412]
[1738837096076,20.60140846,202.35,202.28,8.44779867]
[1738837096480,8.44779867,202.36,202.3,8.44779867]
[1738837096773,8.44779867,202.36,202.31,1.4673]
[1738837097171,8.44779867,202.38,202.32,13.38799867]
[1738837097372,0.03444164,202.36,202.32,8.44779867]
[1738837097874,0.03444164,202.36,202.32,9.98859867]
[1738837099583,0.03444164,202.36,202.35,4.9397]
[1738837099976,8.44779867,202.42,202.34,8.44779867]
[1738837100180,20.60140846,202.45,202.39,8.44779867]
[1738837100573,20.60140846,202.45,202.41,4.9381]
[1738837101277,0.03420223,202.45,202.41,4.97566944]
[1738837103981,0.03420223,202.45,202.41,0.03756944]
[1738837104181,8.44779867,202.42,202.41,0.03756944]
[1738837104585,13.38589867,202.42,202.41,0.03756944]
[1738837109982,8.44779867,202.42,202.41,0.03756944]
[1738837111696,13.38579867,202.42,202.41,0.03756944]
[1738837112588,8.44779867,202.42,202.41,0.03756944]
[1738837114300,13.38589867,202.42,202.41,0.03756944]
[1738837125410,8.44779867,202.44,202.41,0.03756944]
[1738837126813,8.44779867,202.44,202.42,4.938]
[1738837128307,0.03420223,202.45,202.41,0.03756944]
[1738837128512,0.03420223,202.45,202.41,8.48536811]
[1738837129314,0.03420223,202.45,202.43,4.9377]
[1738837129815,4.97150223,202.45,202.42,4.938]
[1738837130715,0.03420223,202.45,202.42,4.938]
[1738837132817,13.38539867,202.44,202.41,0.03756944]
[1738837134019,4.97160223,202.45,202.41,4.97576944]
[1738837134616,4.97160223,202.45,202.41,0.03756944]
[1738837134816,4.97160223,202.45,202.42,4.938]
[1738837135317,4.97160223,202.45,202.41,4.97576944]
[1738837135518,0.03420223,202.45,202.41,4.97576944]
[1738837135719,13.38539867,202.44,202.41,4.97576944]
[1738837136516,13.38589867,202.42,202.41,0.03756944]
[1738837139220,8.44779867,202.42,202.41,0.03756944]
[1738837139419,8.44779867,202.44,202.41,0.03756944]
[1738837139919,13.38549867,202.44,202.41,0.03756944]
[1738837140719,8.44779867,202.44,202.41,4.97566944]
[1738837140920,0.03420223,202.45,202.41,0.03756944]
[1738837141318,0.03420223,202.45,202.44,4.9376]
[1738837141716,0.03420223,202.45,202.41,0.03756944]
[1738837141921,8.44779867,202.44,202.41,0.03756944]
[1738837143025,8.44779867,202.44,202.41,4.97586944]
[1738837143222,8.44779867,202.44,202.41,0.03756944]
[1738837143525,0.03420223,202.45,202.41,0.03756944]
[1738837143730,0.03420223,202.45,202.42,4.938]
[1738837144123,0.03420223,202.45,202.41,0.03756944]
[1738837144726,0.03420223,202.45,202.43,4.9376]
[1738837145425,0.03420223,202.45,202.44,4.9376]
[1738837151828,0.03420223,202.45,202.41,0.03756944]
[1738837152031,0.03420223,202.45,202.43,4.9377]
[1738837158331,4.97150223,202.45,202.42,4.938]
[1738837159928,0.03420223,202.45,202.42,4.938]
[1738837160131,0.03420223,202.45,202.43,4.9377]
[1738837161837,0.03420223,202.45,202.44,4.9376]
[1738837162337,0.03420223,202.45,202.41,0.03756944]
[1738837162538,0.03420223,202.45,202.43,4.9378]
[1738837165234,4.97150223,202.45,202.42,4.938]
[1738837165844,0.03420223,202.45,202.43,4.9376]
[1738837166044,0.03420223,202.45,202.41,0.03756944]
[1738837166445,13.38559867,202.44,202.41,0.03756944]
[1738837168840,8.44779867,202.44,202.41,0.03756944]
[1738837169144,13.38589867,202.42,202.41,0.03756944]
[1738837169339,8.44779867,202.42,202.31,8.44779867]
[1738837169535,2.9472,202.44,202.29,67.86519483]
[1738837169536,8.44779867,202.37,202.29,67.86519483]
[1738837169736,8.44779867,202.35,202.34,4.9399]
[1738837169938,8.44779867,202.35,202.29,25.20564856]
[1738837170341,8.44779867,202.35,202.31,4.9405]
[1738837170546,0.03329001,202.34,202.3,0.03668995]
[1738837171746,0.03329001,202.34,202.32,4.9404]
[1738837179052,0.03329001,202.34,202.3,4.97738995]
[1738837179257,0.03329001,202.34,202.3,0.03668995]
[1738837179450,8.44779867,202.33,202.3,0.03668995]
[1738837179652,4.9405,202.32,202.3,0.03668995]
[1738837180157,8.44779867,202.33,202.3,0.03668995]
[1738837180958,8.44779867,202.33,202.3,4.97758995]
[1738837181158,0.03329001,202.34,202.3,4.97758995]
[1738837181865,4.97349001,202.34,202.3,4.97758995]
[1738837183263,4.9403,202.33,202.3,4.97758995]
[1738837184456,4.9403,202.33,202.3,0.03668995]
[1738837184863,13.38809867,202.33,202.3,0.03668995]
[1738837186468,8.44779867,202.33,202.3,0.03668995]
[1738837186768,4.9405,202.32,202.3,0.03668995]
[1738837187070,13.38809867,202.33,202.3,0.03668995]
[1738837189069,4.9407,202.31,202.3,0.03668995]
[1738837189259,13.38849867,202.31,202.3,0.03668995]
[1738837195175,4.9405,202.32,202.3,0.03668995]
[1738837195876,8.44779867,202.33,202.3,0.03668995]
[1738837196174,13.38849867,202.31,202.3,0.03668995]
[1738837196776,4.942,202.26,202.2,8.44779867]
[1738837197077,8.44779867,202.27,202.2,8.44779867]
[1738837197373,13.38969867,202.27,202.23,4.9426]
[1738837197967,13.42539862,202.27,202.23,4.9762255]
[1738837199477,4.9422,202.25,202.23,0.0336255]
[1738837200078,8.48349862,202.27,202.23,4.9762255]
[1738837200778,0.03569995,202.27,202.23,0.0336255]
[1738837200977,0.03569995,202.27,202.25,8.44779867]
[1738837202183,0.03569995,202.27,202.26,4.942]
[1738837202882,4.9398,202.35,202.31,4.9407]
[1738837204082,4.97521911,202.35,202.31,4.97812153]
[1738837207475,0.03541911,202.35,202.31,0.03742153]
[1738837207680,0.03541911,202.35,202.32,4.9403]
[1738837208382,4.97521911,202.35,202.32,4.9403]
[1738837209885,4.9401,202.34,202.31,4.97802153]
[1738837212086,8.44779867,202.32,202.31,0.03742153]
[1738837212283,8.44779867,202.34,202.31,0.03742153]
[1738837213789,13.38779867,202.34,202.31,4.97802153]
[1738837216087,4.9403,202.33,202.31,0.03742153]
[1738837216687,8.44779867,202.32,202.31,0.03742153]
[1738837216886,13.38829867,202.32,202.31,0.03742153]
[1738837225002,4.9419,202.27,202.2,8.44779867]
[1738837225204,8.44779867,202.26,202.2,8.44779867]
[1738837225400,8.44779867,202.26,202.19,35.93273226]
[1738837226097,13.38979867,202.26,202.22,4.9427]
[1738837226307,0.03683048,202.25,202.22,4.9427]
[1738837226898,4.97903048,202.25,202.22,4.9427]
[1738837227199,4.97903048,202.25,202.21,4.9431]
[1738837227400,8.44779867,202.24,202.2,0.03740066]
[1738837229193,8.44779867,202.22,202.2,0.03740066]
[1738837230701,4.9432,202.21,202.2,0.03740066]
[1738837231209,8.44779867,202.22,202.2,0.03740066]
[1738837231603,4.9432,202.21,202.2,0.03740066]
[1738837232005,8.44779867,202.22,202.2,0.03740066]
[1738837232507,13.39079867,202.22,202.2,0.03740066]
[1738837233809,8.44779867,202.22,202.2,0.03740066]
[1738837234013,8.44779867,202.22,202.2,4.98070066]
[1738837236506,8.44779867,202.22,202.2,0.03740066]
[1738837236804,13.39079867,202.22,202.2,0.03740066]
[1738837242208,8.44779867,202.24,202.2,0.03740066]
[1738837242412,0.03683048,202.25,202.2,0.03740066]
[1738837243209,8.44779867,202.24,202.2,0.03740066]
[1738837243815,8.44779867,202.24,202.21,4.9431]
[1738837245711,8.44779867,202.24,202.2,0.03740066]
[1738837245712,4.9428,202.23,202.2,0.03740066]
[1738837246108,8.44779867,202.24,202.21,4.9431]
[1738837247519,4.9429,202.23,202.2,0.03740066]
[1738837249821,8.44779867,202.24,202.21,4.9431]
[1738837250924,4.9428,202.23,202.2,4.98080066]
[1738837251123,8.44779867,202.22,202.2,0.03740066]
[1738837251416,13.39079867,202.22,202.2,0.03740066]
[1738837252118,4.9432,202.21,202.2,0.03740066]
[1738837254826,13.39079867,202.22,202.2,0.03740066]
[1738837255528,8.44779867,202.22,202.2,0.03740066]
[1738837255729,8.44779867,202.24,202.2,0.03740066]
[1738837256023,8.44779867,202.24,202.21,4.943]
[1738837256225,0.03683048,202.25,202.22,8.44779867]
[1738837257829,0.03683048,202.25,202.24,4.9424]
[1738837258829,0.03683048,202.25,202.24,13.39019867]
[1738837259328,4.9408,202.31,202.24,8.44779867]
[1738837259528,8.44779867,202.32,202.26,8.44779867]
[1738837260622,0.03467738,202.31,202.27,0.03189481]
[1738837261232,0.03467738,202.31,202.28,4.9412]
[1738837261536,0.03467738,202.31,202.27,0.03189481]
[1738837262327,0.03467738,202.31,202.3,4.941]
[1738837268537,0.03467738,202.31,202.28,4.9414]
[1738837268737,0.03467738,202.31,202.27,0.03189481]
[1738837268937,0.03467738,202.31,202.28,8.44779867]
[1738837269737,0.03467738,202.31,202.3,4.941]
[1738837272239,0.03467738,202.31,202.3,13.38879867]
[1738837272638,8.44779867,202.38,202.3,8.44779867]
[1738837272937,8.44779867,202.38,202.28,4.8236]
[1738837272938,8.44779867,202.38,202.36,4.9394]
[1738837273137,13.38639867,202.4,202.36,4.9394]
[1738837273540,8.44779867,202.4,202.37,4.9392]
[1738837274040,13.38629867,202.4,202.36,4.97569825]
[1738837282849,4.939,202.39,202.36,0.03619825]
[1738837283044,8.44779867,202.38,202.36,0.03619825]
[1738837283552,13.38699867,202.38,202.36,0.03619825]
[1738837284053,8.44779867,202.38,202.36,0.03619825]
[1738837285555,4.9393,202.37,202.36,0.03619825]
[1738837287351,8.44779867,202.31,202.24,8.44779867]
[1738837287864,8.44779867,202.33,202.26,8.44779867]
[1738837288358,0.0364307,202.32,202.27,0.03800399]
[1738837288857,0.0364307,202.32,202.29,4.941]
[1738837289361,0.0364307,202.32,202.3,4.941]
[1738837289956,0.0364307,202.32,202.29,4.9412]
[1738837290165,8.44779867,202.31,202.27,0.03800399]
[1738837290359,8.44779867,202.29,202.27,0.03800399]
[1738837291761,4.9415,202.28,202.27,0.03800399]
[1738837293860,8.44779867,202.29,202.27,0.03800399]
[1738837294070,0.0364307,202.32,202.27,0.03800399]
[1738837294263,0.0364307,202.32,202.28,8.44779867]
[1738837295355,0.0364307,202.32,202.31,4.9407]
[1738837303869,8.44779867,202.39,202.35,4.9396]
[1738837304265,8.44779867,202.39,202.32,8.44779867]
[1738837305174,0.03282593,202.38,202.33,0.03491566]
[1738837305567,0.03282593,202.38,202.35,4.9396]
[1738837312783,0.03282593,202.38,202.36,4.9393]
[1738837313475,0.03282593,202.38,202.33,0.03491566]
[1738837313681,0.03282593,202.38,202.37,4.9393]
[1738837314182,0.03282593,202.38,202.34,8.44779867]
[1738837314382,0.03282593,202.38,202.36,4.9394]
[1738837325092,0.03282593,202.38,202.34,8.44779867]
[1738837325394,0.03282593,202.38,202.37,4.9393]
[1738837328295,4.97192593,202.38,202.33,0.03491566]
[1738837328593,8.44779867,202.37,202.33,0.03491566]
[1738837328796,4.94,202.34,202.33,0.03491566]
[1738837329593,4.9412,202.3,202.22,13.04759867]
[1738837329891,8.44779867,202.29,202.22,13.04759867]
[1738837330497,8.44779867,202.29,202.25,4.942]
[1738837330795,0.03674036,202.28,202.25,4.942]
[1738837330997,0.03674036,202.28,202.23,4.97517672]
[1738837331197,0.03674036,202.28,202.23,0.03277672]
[1738837332398,0.03674036,202.28,202.24,4.9422]
[1738837332801,8.44779867,202.27,202.23,0.03277672]
[1738837333898,13.38949867,202.27,202.23,0.03277672]
[1738837334600,13.38999867,202.25,202.23,0.03277672]
[1738837335302,8.44779867,202.25,202.23,0.03277672]
[1738837335694,4.942,202.26,202.23,0.03277672]
[1738837338199,8.44779867,202.27,202.23,0.03277672]
[1738837338496,13.39019867,202.25,202.23,0.03277672]
[1738837338696,8.44779867,202.25,202.23,0.03277672]
[1738837339301,4.9424,202.24,202.23,0.03277672]
[1738837339996,8.44779867,202.25,202.23,4.97537672]
[1738837340201,8.44779867,202.27,202.23,4.97537672]
[1738837340496,13.38949867,202.27,202.23,4.97537672]
[1738837340897,0.03674036,202.28,202.23,0.03277672]
[1738837341103,0.03674036,202.28,202.24,8.44779867]
[1738837341400,0.03674036,202.28,202.25,4.9419]
[1738837342194,0.03674036,202.28,202.27,4.9417]
[1738837346402,0.03674036,202.28,202.26,8.44779867]
[1738837347004,0.03674036,202.28,202.27,4.9417]
[1738837347304,9.92419867,202.37,202.26,8.44779867]
[1738837347504,8.44779867,202.37,202.3,8.44779867]
[1738837347704,13.38679867,202.39,202.33,4.94]
[1738837348203,4.9391,202.38,202.33,4.94]
[1738837348603,0.03386862,202.38,202.33,4.97723899]
[1738837348801,4.9393,202.37,202.33,0.03723899]
[1738837348998,8.44779867,202.35,202.33,0.03723899]
[1738837349603,4.94,202.34,202.33,0.03723899]
[1738837370824,4.9396,202.36,202.33,0.03723899]
[1738837371223,8.44779867,202.37,202.33,0.03723899]
[1738837371423,4.9399,202.35,202.33,0.03723899]
[1738837373424,8.44779867,202.37,202.33,0.03723899]
[1738837373727,4.94,202.34,202.33,0.03723899]
[1738837383138,13.38759867,202.35,202.33,0.03723899]
[1738837384034,4.9396,202.36,202.33,0.03723899]
[1738837384737,0.03386862,202.38,202.33,0.03723899]
[1738837385034,0.03386862,202.38,202.34,8.44779867]
[1738837385233,0.03386862,202.38,202.37,4.9393]
[1738837385432,0.03386862,202.38,202.36,8.44779867]
[1738837386138,0.03386862,202.38,202.36,13.38729867]
[1738837387333,0.03386862,202.38,202.36,4.9395]
[1738837387538,0.03386862,202.38,202.34,8.44779867]
[1738837387539,0.03386862,202.38,202.34,13.38759867]
[1738837389233,0.03386862,202.38,202.34,8.44779867]
[1738837389436,0.03386862,202.38,202.35,4.9397]
[1738837390243,0.03386862,202.38,202.34,13.38779867]
[1738837390441,0.03386862,202.38,202.34,4.94]
[1738837395242,4.97296862,202.38,202.34,4.94]
[1738837396847,4.97296862,202.38,202.33,0.03723899]
[1738837397048,4.97296862,202.38,202.35,4.9397]
[1738837398242,8.48166729,202.38,202.33,0.03723899]
[1738837398444,4.9394,202.37,202.33,4.97743899]
[1738837399140,8.48166729,202.38,202.33,0.03723899]
[1738837399337,13.38739867,202.36,202.33,0.03723899]
[1738837401346,13.38739867,202.36,202.33,4.97743899]
[1738837407052,13.38739867,202.36,202.33,0.03723899]
[1738837407752,8.44779867,202.34,202.33,0.03723899]
[1738837407948,13.38779867,202.34,202.33,0.03723899]
[1738837422559,13.38739867,202.36,202.33,0.03723899]
[1738837422763,4.9396,202.36,202.33,0.03723899]
[1738837423163,0.03386862,202.38,202.34,8.44779867]
[1738837424864,0.03386862,202.38,202.36,4.9395]
[1738837425267,0.03386862,202.38,202.35,4.9397]
[1738837426565,4.97296862,202.38,202.35,4.9397]
[1738837429670,13.42076729,202.38,202.35,4.9397]
[1738837429874,4.9393,202.37,202.34,4.9399]
[1738837431166,13.38749867,202.36,202.33,0.03723899]
[1738837431373,8.44779867,202.36,202.33,0.03723899]
[1738837431782,4.94,202.34,202.33,0.03723899]
[1738837432473,8.44779867,202.36,202.33,0.03723899]
[1738837432669,13.38749867,202.36,202.33,0.03723899]
[1738837435377,8.44779867,202.36,202.33,0.03723899]
[1738837435578,4.9399,202.35,202.33,0.03723899]
[1738837438174,13.38779867,202.34,202.33,0.03723899]
[1738837438873,8.44779867,202.34,202.24,4.7089]
[1738837439179,8.44779867,202.28,202.24,4.7089]
[1738837439682,8.44779867,202.3,202.24,13.15669867]
[1738837439980,0.03690118,202.29,202.25,0.03269114]
[1738837440478,0.03690118,202.29,202.26,4.9418]
[1738837443681,8.44779867,202.28,202.25,0.03269114]
[1738837444782,13.38929867,202.28,202.25,0.03269114]
[1738837445280,8.44779867,202.28,202.25,0.03269114]
[1738837445783,0.03690118,202.29,202.25,0.03269114]
[1738837447280,4.97810118,202.29,202.25,0.03269114]
[1738837448182,4.97810118,202.29,202.25,4.97489114]
[1738837448779,0.03690118,202.29,202.25,0.03269114]
[1738837449285,0.03690118,202.29,202.27,4.9415]
[1738837452091,0.03690118,202.29,202.26,4.9419]
[1738837452784,8.44779867,202.28,202.25,0.03269114]
[1738837452985,8.44779867,202.26,202.25,0.03269114]
[1738837453786,8.44779867,202.26,202.16,0.17648]
[1738837453988,8.44779867,202.19,202.16,0.17648]
[1738837454193,13.39159867,202.19,202.16,0.17648]
[1738837454793,8.44779867,202.19,202.16,0.17648]
[1738837455891,8.44779867,202.19,202.16,5.12078]
[1738837456097,0.03572253,202.2,202.16,8.62427867]
[1738837456296,0.03572253,202.2,202.18,4.9438]
[1738837458898,0.03572253,202.2,202.17,4.9442]
[1738837460493,0.03572253,202.2,202.19,4.9437]
[1738837462492,0.03572253,202.2,202.15,0.03774492]
[1738837462799,8.44779867,202.19,202.15,0.03774492]
[1738837463899,13.39149867,202.19,202.15,4.98234492]
[1738837465800,13.39149867,202.19,202.15,0.03774492]
[1738837465999,13.39149867,202.19,202.16,4.9443]
[1738837466793,8.44779867,202.19,202.17,4.9439]
[1738837466999,0.03572253,202.2,202.17,4.9439]
[1738837467800,4.97932253,202.2,202.15,4.98214492]
[1738837468191,4.97932253,202.2,202.16,4.9443]
[1738837468397,4.97932253,202.2,202.15,0.03774492]
[1738837468398,13.39169867,202.19,202.15,0.03774492]
[1738837468894,13.39169867,202.19,202.15,4.98224492]
[1738837469099,13.39169867,202.19,202.15,0.03774492]
[1738837469898,8.44779867,202.19,202.15,4.98234492]
[1738837470100,13.39199867,202.17,202.15,0.03774492]
[1738837471596,8.44779867,202.17,202.09,0.18797]
[1738837471799,8.44779867,202.12,202.09,0.18797]
[1738837472298,8.44779867,202.12,202.09,5.13397]
[1738837472694,0.03586192,202.13,202.1,4.9458]
[1738837472897,0.03586192,202.13,202.09,0.18797]
[1738837473294,0.03586192,202.13,202.12,4.9453]
[1738837478605,0.03586192,202.13,202.12,13.39309867]
[1738837491109,0.03586192,202.13,202.12,4.9453]
[1738837491304,0.03586192,202.13,202.12,13.39309867]
[1738837493309,0.03586192,202.13,202.12,4.9453]
[1738837497113,0.03586192,202.13,202.11,4.9456]
[1738837498713,0.03586192,202.13,202.12,4.9453]
[1738837499310,0.03586192,202.13,202.12,13.39309867]
[1738837501009,8.44779867,202.24,202.12,8.44779867]
[1738837501213,8.44779867,202.24,202.16,8.44779867]
[1738837502216,8.44779867,202.24,202.19,4.9434]
[1738837502217,0.03192475,202.22,202.19,4.9434]
[1738837502411,0.03192475,202.22,202.18,0.03429874]
[1738837504017,0.03192475,202.22,202.19,4.9434]
[1738837506414,13.42272342,202.22,202.18,0.03429874]
[1738837506620,8.47972342,202.22,202.18,0.03429874]
[1738837507318,13.42262342,202.22,202.18,0.03429874]
[1738837509120,8.47972342,202.22,202.18,0.03429874]
[1738837509320,4.9432,202.21,202.18,0.03429874]
[1738837510621,4.9436,202.19,202.18,0.03429874]
[1738837512918,8.47972342,202.22,202.18,0.03429874]
[1738837513119,0.03192475,202.22,202.18,8.48209741]
[1738837513321,0.03192475,202.22,202.2,4.9432]
[1738837513619,0.03192475,202.22,202.18,0.03429874]
[1738837513923,8.47972342,202.22,202.18,0.03429874]
[1738837514824,4.9432,202.21,202.18,0.03429874]
[1738837516125,13.42262342,202.22,202.18,0.03429874]
[1738837517220,0.03192475,202.22,202.18,0.03429874]
[1738837517525,0.03192475,202.22,202.2,4.9433]
[1738837517725,0.03192475,202.22,202.18,0.03429874]
[1738837518118,0.03192475,202.22,202.18,8.48209741]
[1738837518323,0.03192475,202.22,202.21,4.9431]
[1738837520629,0.03192475,202.22,202.19,4.9436]
[1738837521431,0.03192475,202.22,202.18,8.48209741]
[1738837521829,0.03192475,202.22,202.19,4.9434]
[1738837522326,0.03192475,202.22,202.2,4.9433]
[1738837525533,0.03192475,202.22,202.21,4.9431]
[1738837528440,0.03192475,202.22,202.18,8.48209741]
[1738837529840,0.03192475,202.22,202.2,4.9434]
[1738837531138,0.03192475,202.22,202.21,4.9431]
[1738837537041,8.44779867,202.3,202.2,8.44779867]
[1738837537247,9.95949867,202.34,202.26,8.44779867]
[1738837537442,8.44779867,202.34,202.26,8.44779867]
[1738837538348,0.03758282,202.32,202.28,0.03282868]
[1738837539143,0.03758282,202.32,202.29,4.941]
[1738837540244,0.03758282,202.32,202.3,4.9408]
[1738837540646,4.97808282,202.32,202.28,0.03282868]
[1738837542346,4.9409,202.31,202.28,0.03282868]
[1738837542640,8.44779867,202.3,202.28,0.03282868]
[1738837542844,4.9412,202.29,202.28,0.03282868]
[1738837569754,23.27779867,202.3,202.19,0.17342]
[1738837569960,8.44779867,202.21,202.19,0.17342]
[1738837570752,4.9434,202.2,202.19,0.17342]
[1738837573261,13.39099867,202.21,202.19,0.17342]
[1738837574057,0.03771117,202.22,202.2,4.9432]
[1738837574263,0.03771117,202.22,202.19,8.62121867]
[1738837574857,8.44779867,202.29,202.21,8.44779867]
[1738837575159,8.44779867,202.31,202.25,8.44779867]
[1738837575555,4.9411,202.3,202.25,13.38969867]
[1738837576164,4.97617618,202.3,202.25,13.42566418]
[1738837577167,0.03507618,202.3,202.27,8.44779867]
[1738837577755,0.03507618,202.3,202.28,4.9412]